bitfinex-derivatives/quotes_SOLF0:USTF0_20250527
["timestamp","ask_amount","ask_price","bid_price","bid_amount"]
[1748338274896,122.5595965,175.19,175.18,5.7062]
[1748338277404,0.0395965,175.19,175.18,5.7062]
[1748338282110,2.86232155,175.19,175.18,5.7062]
[1748338282716,0.0395965,175.19,175.18,5.7062]
[1748338283118,2.8648276,175.19,175.18,5.7062]
[1748338284819,2.86527056,175.19,175.18,5.7062]
[1748338286509,2.86634816,175.19,175.18,5.7062]
[1748338288322,2.86719407,175.19,175.18,5.7062]
[1748338288823,2.86719407,175.19,175.15,0.03736378]
[1748338289023,2.82759757,175.18,175.12,3.35597186]
[1748338289214,2.82759757,175.17,175.12,3.35597186]
[1748338289525,2.82759757,175.16,175.12,3.35597186]
[1748338289720,2.82759757,175.15,175.12,3.35597186]
[1748338289922,2.82759757,175.14,175.12,3.35597186]
[1748338290122,0.04053665,175.15,175.13,5.7076]
[1748338290723,0.04053665,175.15,175.14,5.7075]
[1748338290924,2.86546774,175.15,175.14,5.7075]
[1748338292023,2.86546774,175.15,175.13,5.7077]
[1748338292224,0.04053665,175.15,175.12,0.02113643]
[1748338292426,2.82381202,175.14,175.12,0.02113643]
[1748338292626,2.82351707,175.13,175.12,0.02113643]
[1748338292921,2.82510285,175.13,175.12,0.02113643]
[1748338293626,2.82447337,175.13,175.12,0.02113643]
[1748338294024,8.53227337,175.13,175.12,0.02113643]
[1748338294422,2.82447337,175.13,175.12,0.02113643]
[1748338295229,0.04053665,175.15,175.12,0.02113643]
[1748338295526,2.8227196,175.14,175.12,0.02113643]
[1748338295719,5.7078,175.13,175.12,0.02113643]
[1748338296717,5.7076,175.14,175.12,0.02113643]
[1748338298027,5.74783665,175.15,175.12,5.72923643]
[1748338301029,0.04053665,175.15,175.12,0.02113643]
[1748338302029,0.04053665,175.15,175.14,5.7075]
[1748338305732,0.04053665,175.15,175.12,0.02113643]
[1748338306240,5.74793665,175.15,175.12,5.72903643]
[1748338308338,5.7075,175.14,175.12,0.02113643]
[1748338312131,5.7078,175.13,175.12,0.02113643]
[1748338314639,5.7076,175.14,175.12,0.02113643]
[1748338314840,122.36053665,175.15,175.12,0.02113643]
[1748338315136,5.7078,175.13,175.12,0.02113643]
[1748338322650,5.7077,175.14,175.12,0.02113643]
[1748338322949,0.04053665,175.15,175.12,0.02113643]
[1748338323447,0.04053665,175.15,175.13,5.7076]
[1748338324545,0.04053665,175.15,175.12,0.02113643]
[1748338325348,0.04053665,175.15,175.12,5.72903643]
[1748338325548,0.04053665,175.15,175.12,0.02113643]
[1748338326750,0.04053665,175.15,175.13,5.7076]
[1748338326953,0.04053665,175.15,175.12,0.02113643]
[1748338327345,0.04053665,175.15,175.13,5.7076]
[1748338330652,0.04053665,175.15,175.14,5.7075]
[1748338330852,2.86686935,175.15,175.14,5.7075]
[1748338331651,2.86686935,175.15,175.12,0.02113643]
[1748338331855,2.8263327,175.14,175.12,0.02113643]
[1748338332156,0.04053665,175.15,175.13,5.7076]
[1748338332347,2.82658342,175.14,175.13,5.7076]
[1748338333954,2.82658342,175.14,175.12,5.72913643]
[1748338334156,5.74783665,175.15,175.12,0.02113643]
[1748338334458,2.82933606,175.14,175.12,0.02113643]
[1748338334656,0.04053665,175.15,175.13,5.7078]
[1748338334954,2.82934172,175.14,175.13,5.7078]
[1748338335458,2.82939673,175.14,175.13,5.7078]
[1748338337152,0.04053665,175.15,175.13,5.7078]
[1748338337355,2.82931589,175.14,175.13,5.7078]
[1748338337954,0.04053665,175.15,175.14,5.7075]
[1748338338254,2.86993899,175.15,175.14,5.7075]
[1748338338754,2.86996419,175.15,175.14,5.7075]
[1748338338949,2.86959897,175.15,175.14,5.7075]
[1748338342658,0.04053665,175.15,175.14,5.7075]
[1748338343050,2.8710765,175.15,175.13,5.7077]
[1748338343359,2.83026241,175.14,175.12,0.02113643]
[1748338343550,0.04053665,175.15,175.12,0.02113643]
[1748338343747,0.04053665,175.15,175.14,5.7075]
[1748338343952,2.87077516,175.15,175.14,5.7075]
[1748338346157,0.04053665,175.15,175.14,5.7075]
[1748338347359,2.8706559,175.15,175.14,5.7075]
[1748338347759,2.87054599,175.15,175.14,5.7075]
[1748338351267,2.87048065,175.15,175.14,5.7075]
[1748338352862,0.04053665,175.15,175.14,5.7075]
[1748338353958,0.04053665,175.15,175.14,8.97087409]
[1748338354666,0.04053665,175.15,175.14,5.7075]
[1748338356066,121.72,175.22,175.13,3.26337409]
[1748338356368,2.83004338,175.21,175.16,3.26337409]
[1748338356564,2.83004338,175.2,175.16,111.68337409]
[1748338356765,2.83004338,175.19,175.16,111.68337409]
[1748338356968,0.03940743,175.19,175.16,111.72621967]
[1748338357861,0.03940743,175.19,175.18,8.96957409]
[1748338358366,7.43e-06,175.19,175.18,8.96957409]
[1748338364174,7.43e-06,175.19,175.18,117.36957409]
[1748338364977,7.43e-06,175.19,175.18,114.1062]
[1748338365177,7.43e-06,175.19,175.18,117.36957409]
[1748338369582,7.43e-06,175.19,175.18,114.1062]
[1748338369785,7.43e-06,175.19,175.18,117.36957409]
[1748338371985,7.43e-06,175.19,175.18,5.7062]
[1748338380596,7.43e-06,175.19,175.17,111.66337409]
[1748338380597,7.43e-06,175.19,175.17,5.7064]
[1748338380786,7.43e-06,175.19,175.16,0.04284558]
[1748338381190,5.70600743,175.19,175.16,5.74944558]
[1748338381390,7.43e-06,175.19,175.16,0.04284558]
[1748338381788,7.43e-06,175.19,175.17,5.7063]
[1748338384904,5.70590743,175.19,175.17,5.7063]
[1748338385202,5.70590743,175.19,175.16,5.74954558]
[1748338385704,5.70590743,175.19,175.16,0.04284558]
[1748338386801,7.43e-06,175.19,175.16,0.04284558]
[1748338387006,2.82338584,175.18,175.16,0.04284558]
[1748338387309,7.43e-06,175.19,175.16,0.04284558]
[1748338387504,2.82379553,175.18,175.16,0.04284558]
[1748338387704,7.43e-06,175.19,175.16,0.04284558]
[1748338387905,2.82384343,175.18,175.16,0.04284558]
[1748338388104,7.43e-06,175.19,175.16,0.04284558]
[1748338388304,5.7065,175.17,175.16,0.04284558]
[1748338389109,8.53009774,175.17,175.16,0.04284558]
[1748338389910,5.7065,175.17,175.16,0.04284558]
[1748338396308,5.7063,175.18,175.16,0.04284558]
[1748338397815,7.43e-06,175.19,175.16,0.04284558]
[1748338398417,7.43e-06,175.19,175.17,5.7063]
[1748338399015,5.70590743,175.19,175.17,5.7063]
[1748338400926,7.43e-06,175.19,175.18,5.7062]
[1748338411924,7.43e-06,175.19,175.18,8.96669891]
[1748338413526,7.43e-06,175.19,175.18,5.7062]
[1748338413726,7.43e-06,175.19,175.18,8.96669891]
[1748338416328,1.9448,175.26,175.24,5.704]
[1748338419533,1.9448,175.26,175.25,5.7039]
[1748338419732,126.80264313,175.27,175.25,5.7039]
[1748338420331,5.7037,175.26,175.23,0.03801845]
[1748338420527,3.26049891,175.26,175.23,0.03801845]
[1748338420925,5.7039,175.25,175.23,0.03801845]
[1748338421125,121.09924313,175.27,175.23,0.03801845]
[1748338421834,5.7038,175.26,175.23,5.74241845]
[1748338423235,5.704,175.25,175.23,5.74241845]
[1748338424635,5.7037,175.26,175.23,5.74241845]
[1748338425835,5.704,175.25,175.23,5.74241845]
[1748338427842,5.7037,175.26,175.23,5.74241845]
[1748338429443,5.7037,175.26,175.23,0.03801845]
[1748338430844,5.7039,175.25,175.23,0.03801845]
[1748338435849,5.7042,175.24,175.23,0.03801845]
[1748338436855,5.704,175.25,175.23,0.03801845]
[1748338437354,5.7042,175.24,175.23,0.03801845]
[1748338437555,8.96469891,175.24,175.23,0.03801845]
[1748338437847,3.26049891,175.24,175.17,3.35597186]
[1748338438160,5.7054,175.21,175.17,9.06227186]
[1748338438648,120.72,175.23,175.19,5.7058]
[1748338438851,0.04254129,175.23,175.19,0.04179378]
[1748338439654,0.04254129,175.23,175.2,5.7054]
[1748338441053,0.04254129,175.23,175.21,5.7051]
[1748338441953,0.04254129,175.23,175.19,3.30229269]
[1748338442254,0.04254129,175.23,175.21,5.705]
[1748338443051,0.04254129,175.23,175.2,5.7054]
[1748338443754,0.04254129,175.23,175.21,5.7051]
[1748338445356,0.04254129,175.23,175.2,5.7054]
[1748338446052,2.83602369,175.22,175.2,5.7054]
[1748338446249,0.04254129,175.23,175.2,5.7054]
[1748338446450,2.83648126,175.22,175.2,5.7054]
[1748338446651,0.04254129,175.23,175.2,5.7054]
[1748338446949,2.83647342,175.22,175.2,5.7054]
[1748338447149,0.04254129,175.23,175.2,5.7054]
[1748338447359,2.83634493,175.22,175.2,5.7054]
[1748338447652,0.04254129,175.23,175.2,5.7054]
[1748338447849,2.83631996,175.22,175.2,5.7054]
[1748338448046,0.04254129,175.23,175.2,5.7054]
[1748338448248,2.83619729,175.22,175.2,5.7054]
[1748338448554,0.04254129,175.23,175.2,5.7054]
[1748338448752,2.83614188,175.22,175.2,5.7054]
[1748338449051,0.04254129,175.23,175.2,5.7054]
[1748338449252,2.83601427,175.22,175.2,5.7054]
[1748338449454,0.04254129,175.23,175.2,5.7054]
[1748338449752,2.83599315,175.22,175.2,5.7054]
[1748338450051,0.04254129,175.23,175.2,5.7054]
[1748338450248,2.83609017,175.22,175.2,5.7054]
[1748338450452,0.04254129,175.23,175.2,5.7054]
[1748338450652,2.83609999,175.22,175.2,5.7054]
[1748338450949,0.04254129,175.23,175.2,5.7054]
[1748338451149,2.83609736,175.22,175.2,5.7054]
[1748338451350,0.04254129,175.23,175.2,5.7054]
[1748338451549,2.8361448,175.22,175.2,5.7054]
[1748338451747,0.04254129,175.23,175.2,5.7054]
[1748338451949,2.83617039,175.22,175.2,5.7054]
[1748338452148,0.04254129,175.23,175.2,5.7054]
[1748338452349,2.83636319,175.22,175.21,5.7052]
[1748338456455,2.83636319,175.22,175.2,5.7054]
[1748338456645,0.04254129,175.23,175.19,3.30229269]
[1748338456850,2.83731483,175.22,175.19,3.30229269]
[1748338457155,0.04254129,175.23,175.21,5.705]
[1748338457354,2.83733722,175.22,175.21,5.705]
[1748338457857,2.83732442,175.22,175.21,5.705]
[1748338459758,2.83731773,175.22,175.21,5.705]
[1748338461362,2.83737885,175.22,175.21,5.705]
[1748338462563,2.83737885,175.22,175.2,5.7054]
[1748338462762,0.04254129,175.23,175.19,111.68229269]
[1748338462960,2.83742466,175.22,175.19,111.68229269]
[1748338463156,0.04254129,175.23,175.19,111.68229269]
[1748338463357,2.83725773,175.22,175.19,111.68229269]
[1748338463552,0.04254129,175.23,175.19,111.68229269]
[1748338463756,2.83729254,175.22,175.19,111.68229269]
[1748338463962,0.04254129,175.23,175.19,111.68229269]
[1748338464163,2.83729359,175.22,175.19,111.68229269]
[1748338464369,0.04254129,175.23,175.21,5.7051]
[1748338464564,2.83729213,175.22,175.21,5.7051]
[1748338465063,2.8373136,175.22,175.21,5.7051]
[1748338466764,2.8376825,175.22,175.21,5.7051]
[1748338468571,0.04254129,175.23,175.22,5.7049]
[1748338468867,2.88041209,175.23,175.19,111.68229269]
[1748338469058,2.8378708,175.22,175.2,5.7053]
[1748338469263,0.04254129,175.23,175.2,5.7053]
[1748338469568,2.83788786,175.22,175.21,5.7052]
[1748338470666,2.83788786,175.22,175.19,0.04179378]
[1748338470866,5.7054,175.21,175.19,0.04179378]
[1748338471472,5.7055,175.2,175.19,0.04179378]
[1748338472668,8.54254168,175.2,175.19,0.04179378]
[1748338474873,5.7055,175.2,175.19,0.04179378]
[1748338476875,8.54249056,175.2,175.19,0.04179378]
[1748338477276,8.54228365,175.2,175.19,0.04179378]
[1748338478576,8.54013093,175.2,175.19,0.04179378]
[1748338479272,8.54037027,175.2,175.19,0.04179378]
[1748338482378,8.53813098,175.2,175.19,0.04179378]
[1748338487581,2.83263098,175.2,175.19,0.04179378]
[1748338488475,2.83030426,175.2,175.19,0.04179378]
[1748338489481,2.83008887,175.2,175.19,5.74759378]
[1748338490584,2.83008887,175.2,175.19,0.04179378]
[1748338491076,8.53558887,175.2,175.19,0.04179378]
[1748338492481,8.53549761,175.2,175.19,0.04179378]
[1748338494383,2.82999761,175.2,175.19,0.04179378]
[1748338495986,2.83016854,175.2,175.19,0.04179378]
[1748338496383,8.53566854,175.2,175.19,0.04179378]
[1748338496779,8.53576005,175.2,175.19,0.04179378]
[1748338500294,2.83026005,175.2,175.19,0.04179378]
[1748338501087,2.83075028,175.2,175.19,0.04179378]
[1748338502483,2.83129185,175.2,175.19,0.04179378]
[1748338504189,2.83129185,175.2,175.19,5.74759378]
[1748338504690,5.7049,175.22,175.19,5.74759378]
[1748338504887,2.8334219,175.21,175.19,5.74759378]
[1748338505181,5.7049,175.22,175.2,5.7055]
[1748338505492,126.10714129,175.23,175.2,5.7055]
[1748338505690,2.83417527,175.22,175.2,5.7055]
[1748338505882,5.7049,175.22,175.19,5.74749378]
[1748338507490,5.74724129,175.23,175.2,5.7055]
[1748338507790,2.83494006,175.22,175.2,5.7055]
[1748338507991,5.74724129,175.23,175.2,5.7055]
[1748338508192,2.83520009,175.22,175.2,5.7055]
[1748338508387,5.74724129,175.23,175.2,5.7055]
[1748338508588,2.83544987,175.22,175.2,5.7055]
[1748338508791,5.74724129,175.23,175.2,5.7055]
[1748338508991,2.8355323,175.22,175.2,5.7055]
[1748338509193,5.74724129,175.23,175.2,5.7055]
[1748338509393,2.83579742,175.22,175.2,5.7055]
[1748338509697,5.74724129,175.23,175.2,5.7055]
[1748338509990,2.83576522,175.22,175.2,5.7055]
[1748338510197,5.74724129,175.23,175.2,5.7055]
[1748338510393,2.83576522,175.22,175.2,5.7055]
[1748338510588,5.74724129,175.23,175.21,5.7051]
[1748338510789,2.83585201,175.22,175.21,5.7051]
[1748338511190,2.83585201,175.22,175.2,5.7054]
[1748338511395,5.74724129,175.23,175.2,5.7054]
[1748338511593,2.83556264,175.22,175.2,5.7054]
[1748338511793,5.74724129,175.23,175.2,5.7054]
[1748338511993,2.83504509,175.22,175.2,5.7054]
[1748338512193,5.74724129,175.23,175.2,5.7054]
[1748338512391,2.83431031,175.22,175.2,5.7054]
[1748338512594,5.74724129,175.23,175.2,5.7054]
[1748338512785,2.83435949,175.22,175.2,5.7054]
[1748338512992,5.74724129,175.23,175.21,5.705]
[1748338513190,2.83426749,175.22,175.21,5.705]
[1748338513486,2.83468372,175.22,175.21,5.705]
[1748338513991,0.04254129,175.23,175.22,5.7048]
[1748338514193,2.87714365,175.23,175.22,5.7048]
[1748338515593,0.04254129,175.23,175.22,5.7048]
[1748338516000,0.04254129,175.23,175.19,3.30229269]
[1748338516502,0.04254129,175.23,175.22,5.7048]
[1748338529615,4.129e-05,175.23,175.22,5.7048]
[1748338529816,4.129e-05,175.23,175.22,8.96529891]
[1748338530414,122.88049891,175.32,175.29,5.7025]
[1748338530603,2.82880216,175.31,175.24,3.26049891]
[1748338530806,2.82880216,175.3,175.24,3.26049891]
[1748338531007,2.82880216,175.29,175.24,3.26049891]
[1748338531210,7.16009891,175.33,175.24,3.26049891]
[1748338531412,0.03926816,175.3,175.27,0.03761507]
[1748338531611,2.82879658,175.29,175.28,5.7027]
[1748338532414,0.03926816,175.3,175.28,5.7027]
[1748338532714,0.03926816,175.3,175.29,5.7025]
[1748338534809,0.03926816,175.3,175.29,125.3025]
[1748338536516,0.03926816,175.3,175.29,128.56299891]
[1748338538515,0.03926816,175.3,175.29,125.3025]
[1748338538716,0.03926816,175.3,175.29,128.56299891]
[1748338542520,6.816e-05,175.3,175.29,128.56299891]
[1748338543519,6.816e-05,175.3,175.29,5.7025]
[1748338550136,6.816e-05,175.3,175.29,8.96299891]
[1748338550335,6.816e-05,175.3,175.29,5.7025]
[1748338554737,6.816e-05,175.3,175.28,5.7027]
[1748338555338,6.816e-05,175.3,175.27,0.03761507]
[1748338555339,6.816e-05,175.3,175.29,5.7025]
[1748338570750,6.816e-05,175.3,175.28,5.7027]
[1748338571250,6.816e-05,175.3,175.27,119.31761507]
[1748338571446,6.816e-05,175.3,175.28,5.7029]
[1748338573157,6.816e-05,175.3,175.29,5.7025]
[1748338573652,6.816e-05,175.3,175.28,5.7026]
[1748338573953,6.816e-05,175.3,175.27,119.31761507]
[1748338575154,6.816e-05,175.3,175.29,5.7025]
[1748338577459,2.83700597,175.3,175.29,5.7025]
[1748338578559,2.83700597,175.3,175.27,0.03761507]
[1748338578759,6.09566994,175.29,175.27,0.03761507]
[1748338578965,2.83693781,175.28,175.26,3.35597186]
[1748338579260,2.83693781,175.27,175.26,3.35597186]
[1748338579659,2.83693781,175.27,175.26,9.05947186]
[1748338579853,2.04956816,175.3,175.26,3.35597186]
[1748338580059,2.83626769,175.29,175.26,3.35597186]
[1748338580362,2.83626769,175.28,175.25,0.03764459]
[1748338580563,2.04956816,175.3,175.28,5.7026]
[1748338580762,2.83596055,175.29,175.28,5.7026]
[1748338583970,6.816e-05,175.3,175.29,5.7025]
[1748338584166,2.83577382,175.3,175.29,5.7025]
[1748338587572,6.816e-05,175.3,175.29,5.7025]
[1748338592873,6.816e-05,175.3,175.29,7.62446212]
[1748338594374,6.816e-05,175.3,175.29,5.7025]
[1748338598976,6.816e-05,175.3,175.29,114.0225]
[1748338606477,6.816e-05,175.3,175.28,5.7027]
[1748338606678,6.816e-05,175.3,175.27,119.3]
[1748338606886,5.70256816,175.3,175.27,119.3]
[1748338607089,6.816e-05,175.3,175.28,5.7026]
[1748338607688,2.83153857,175.29,175.28,5.7026]
[1748338608192,6.816e-05,175.3,175.28,5.7026]
[1748338608390,2.83180404,175.29,175.28,5.7026]
[1748338608591,6.816e-05,175.3,175.28,5.7026]
[1748338608788,6.816e-05,175.3,175.29,5.7025]
[1748338608985,2.83202584,175.3,175.29,5.7025]
[1748338609179,6.816e-05,175.3,175.29,5.7025]
[1748338620298,6.816e-05,175.3,175.28,5.7027]
[1748338620911,6.816e-05,175.3,175.29,5.7025]
[1748338621201,2.83243238,175.3,175.29,5.7025]
[1748338622001,6.816e-05,175.3,175.29,5.7025]
[1748338625310,2.83259413,175.3,175.29,5.7025]
[1748338628114,6.816e-05,175.3,175.29,5.7025]
[1748338631918,1.9708,175.41,175.28,11.4057]
[1748338632118,5.6994,175.39,175.28,11.4057]
[1748338632313,2.83382909,175.38,175.28,11.4057]
[1748338632505,2.83382909,175.37,175.29,11.405]
[1748338632711,7.6696,175.41,175.3,1.9499]
[1748338632917,0.04378689,175.37,175.34,0.04175008]
[1748338633217,0.04378689,175.37,175.36,5.7003]
[1748338635419,0.04378689,175.37,175.35,118.7]
[1748338635918,8.689e-05,175.37,175.35,118.7]
[1748338662333,8.689e-05,175.37,175.36,108.28]
[1748338662737,8.689e-05,175.37,175.35,118.7]
[1748338670144,8.689e-05,175.37,175.34,3.39772194]
[1748338671841,8.689e-05,175.37,175.34,0.04175008]
[1748338675246,2.7889262,175.36,175.34,0.04175008]
[1748338675447,2.0175,175.35,175.33,1.92280929]
[1748338677244,2.0175,175.35,175.32,0.04141564]
[1748338678143,2.78849147,175.34,175.32,0.04141564]
[1748338678340,2.0175,175.35,175.32,0.04141564]
[1748338678544,2.78726,175.34,175.32,0.04141564]
[1748338678741,2.0175,175.35,175.32,0.04141564]
[1748338679044,4.79672532,175.34,175.32,0.04141564]
[1748338679238,2.0097,175.34,175.32,0.04141564]
[1748338681541,5.7012,175.33,175.32,0.04141564]
[1748338683850,7.7107,175.34,175.32,0.04141564]
[1748338685748,5.7012,175.33,175.32,0.04141564]
[1748338686449,5.7012,175.33,175.24,3.35597186]
[1748338686450,118.18,175.33,175.24,3.35597186]
[1748338686754,4.75596298,175.32,175.24,3.35597186]
[1748338687051,8.48376298,175.31,175.24,3.35597186]
[1748338687248,1.9743,175.32,175.24,3.35597186]
[1748338687546,2.77991063,175.31,175.24,3.35597186]
[1748338687850,5.74000397,175.3,175.27,5.703]
[1748338691750,5.74000397,175.3,175.29,5.7026]
[1748338691751,0.03780397,175.3,175.29,5.7026]
[1748338696659,3.97e-06,175.3,175.29,5.7026]
[1748338710168,3.97e-06,175.3,175.29,7.62280326]
[1748338717775,118.2,175.39,175.29,1.92020326]
[1748338717973,2.78887627,175.38,175.3,118.08]
[1748338718173,2.78887627,175.37,175.3,118.08]
[1748338718367,5.6997,175.38,175.35,5.7004]
[1748338718564,2.78925586,175.37,175.35,5.7004]
[1748338718769,5.73568226,175.38,175.35,5.7004]
[1748338719066,2.78925943,175.37,175.35,5.7004]
[1748338719262,5.73568226,175.38,175.35,5.7004]
[1748338719475,2.78964587,175.37,175.36,5.7003]
[1748338720975,2.78964587,175.37,175.35,5.7005]
[1748338721175,5.73558226,175.38,175.35,5.7005]
[1748338721378,2.78958294,175.37,175.35,5.7005]
[1748338721574,5.73558226,175.38,175.34,108.35824555]
[1748338721774,2.78958294,175.37,175.35,5.7006]
[1748338721978,5.73558226,175.38,175.34,108.35824555]
[1748338722172,2.78960237,175.37,175.34,108.35824555]
[1748338722374,5.73558226,175.38,175.34,108.35824555]
[1748338722669,2.78948081,175.37,175.34,108.35824555]
[1748338722873,5.73558226,175.38,175.34,108.35824555]
[1748338723069,2.7894428,175.37,175.34,108.35824555]
[1748338723273,5.73558226,175.38,175.36,5.7002]
[1748338723474,2.78930077,175.37,175.36,5.7002]
[1748338723681,2.78932181,175.37,175.36,5.7002]
[1748338724285,0.03598226,175.38,175.36,5.7002]
[1748338724587,0.03598226,175.38,175.37,5.6999]
[1748338725892,0.03598226,175.38,175.34,108.35824555]
[1748338726488,0.03598226,175.38,175.37,5.6999]
[1748338727489,0.03598226,175.38,175.36,5.7001]
[1748338729797,0.03598226,175.38,175.37,5.6999]
[1748338730295,0.03598226,175.38,175.34,108.35824555]
[1748338730897,0.03598226,175.38,175.37,5.6999]
[1748338734103,2.8241952,175.38,175.34,108.35824555]
[1748338734297,0.03598226,175.38,175.34,0.03824555]
[1748338734495,5.7002,175.37,175.34,5.73884555]
[1748338734695,0.03598226,175.38,175.34,5.73884555]
[1748338734899,2.78882138,175.37,175.34,5.73884555]
[1748338735194,5.7,175.37,175.34,5.73884555]
[1748338735598,5.7,175.37,175.35,5.7006]
[1748338736005,5.7,175.37,175.34,0.03824555]
[1748338736201,5.7,175.37,175.34,5.73884555]
[1748338737305,5.7003,175.36,175.34,5.73884555]
[1748338737805,5.7006,175.35,175.34,0.03824555]
[1748338738000,8.49080019,175.35,175.34,0.03824555]
[1748338741002,14.19080019,175.35,175.34,0.03824555]
[1748338741300,5.7022,175.3,175.29,3.35597186]
[1748338741499,8.49240019,175.3,175.29,3.35597186]
[1748338742408,8.77154932,175.3,175.29,3.35597186]
[1748338744212,5.7025,175.29,175.28,0.03914203]
[1748338744406,8.77184932,175.29,175.28,0.03914203]
[1748338745207,3.06934932,175.29,175.28,0.03914203]
[1748338745802,8.77184932,175.29,175.28,0.03914203]
[1748338746610,0.03872002,175.31,175.28,0.03914203]
[1748338747710,0.03872002,175.31,175.3,5.7022]
[1748338747910,3.10158528,175.31,175.3,5.7022]
[1748338750509,0.03872002,175.31,175.3,5.7022]
[1748338762123,0.03872002,175.31,175.28,5.74184203]
[1748338762315,3.06117136,175.3,175.28,0.03914203]
[1748338762613,5.7025,175.3,175.28,0.03914203]
[1748338762813,0.03872002,175.31,175.28,0.03914203]
[1748338763014,5.7026,175.29,175.28,0.03914203]
[1748338763214,8.7628236,175.29,175.28,0.03914203]
[1748338765222,8.76061964,175.29,175.28,0.03914203]
[1748338767415,126.78061964,175.29,175.28,0.03914203]
[1748338768724,123.7226,175.29,175.28,0.03914203]
[1748338768918,126.77784714,175.29,175.28,0.03914203]
[1748338772222,123.7226,175.29,175.28,0.03914203]
[1748338772427,126.77675232,175.29,175.28,0.03914203]
[1748338776028,126.77632515,175.29,175.28,0.03914203]
[1748338782838,126.78212458,175.29,175.28,0.03914203]
[1748338784544,126.78338667,175.29,175.28,0.03914203]
[1748338789348,126.7832569,175.29,175.28,0.03914203]
[1748338791049,131.36015416,175.29,175.28,0.03914203]
[1748338796941,128.29949726,175.29,175.28,0.03914203]
[1748338797145,131.36141416,175.29,175.28,0.03914203]
[1748338798751,131.36281425,175.29,175.28,0.03914203]
[1748338799452,131.36290236,175.29,175.28,0.03914203]
[1748338802249,5.7049,175.22,175.2,7.30897186]
[1748338803152,0.04093513,175.23,175.2,7.30897186]
[1748338803349,3.06603891,175.22,175.2,7.33717897]
[1748338803549,3.06603891,175.21,175.2,7.33717897]
[1748338803857,3.06603891,175.21,175.2,13.04267897]
[1748338804056,3.06603891,175.21,175.2,9.68670711]
[1748338805355,3.06730634,175.21,175.2,5.73370711]
[1748338805747,3.06730634,175.21,175.2,0.02820711]
[1748338810462,3.07664234,175.21,175.2,0.02820711]
[1748338812461,3.07664234,175.21,175.2,5.73370711]
[1748338812663,0.04093513,175.23,175.2,0.02820711]
[1748338813949,0.04093513,175.23,175.22,5.7048]
[1748338817654,123.6818,175.32,175.22,226.38]
[1748338817857,123.6818,175.32,175.23,3.845]
[1748338818060,4.58730659,175.31,175.23,3.845]
[1748338818564,0.03868478,175.29,175.23,3.845]
[1748338818766,0.03868478,175.29,175.25,0.04053511]
[1748338819260,0.03868478,175.29,175.28,5.7029]
[1748338819462,0.03868478,175.29,175.25,0.04053511]
[1748338819658,5.74148478,175.29,175.25,5.74423511]
[1748338819967,5.74148478,175.29,175.25,0.04053511]
[1748338820863,5.74148478,175.29,175.25,5.74423511]
[1748338821266,0.03868478,175.29,175.25,5.74423511]
[1748338822167,5.74128478,175.29,175.25,5.74423511]
[1748338822567,0.03868478,175.29,175.25,0.04053511]
[1748338822759,5.7029,175.28,175.25,0.04053511]
[1748338822964,0.03868478,175.29,175.25,0.04053511]
[1748338823166,0.03868478,175.29,175.25,5.74433511]
[1748338823365,0.03868478,175.29,175.25,0.04053511]
[1748338823768,0.03868478,175.29,175.26,5.7035]
[1748338824570,2.9537587,175.28,175.26,5.7035]
[1748338824770,2.9537587,175.27,175.26,5.7035]
[1748338825971,2.9537587,175.27,175.25,5.74433511]
[1748338826169,0.03868478,175.29,175.25,5.74433511]
[1748338826468,2.9544789,175.28,175.25,5.74433511]
[1748338826671,2.9544789,175.27,175.25,5.74433511]
[1748338826972,2.95443827,175.26,175.25,5.74433511]
[1748338827870,0.03868478,175.29,175.25,5.74433511]
[1748338828070,2.95469983,175.28,175.25,5.74433511]
[1748338828371,2.95469983,175.27,175.25,5.74433511]
[1748338828569,0.03868478,175.29,175.25,5.74433511]
[1748338828570,2.95460769,175.26,175.25,5.74433511]
[1748338829470,0.03868478,175.29,175.26,5.7035]
[1748338829665,2.95466507,175.28,175.26,5.7035]
[1748338829869,2.95466507,175.27,175.26,5.7035]
[1748338830166,2.95466507,175.27,175.25,5.74433511]
[1748338830471,2.95466507,175.26,175.25,5.74433511]
[1748338830670,0.03868478,175.29,175.27,5.7031]
[1748338830872,2.95415355,175.28,175.27,5.7031]
[1748338831265,2.95415355,175.28,175.26,5.7035]
[1748338831465,2.95415355,175.27,175.26,5.7035]
[1748338834982,2.95415355,175.27,175.25,0.04053511]
[1748338835275,5.7032,175.28,175.25,0.04053511]
[1748338835476,2.95482744,175.27,175.25,5.74423511]
[1748338835677,5.74148478,175.29,175.25,5.74423511]
[1748338835873,2.9547461,175.28,175.25,5.74423511]
[1748338836074,2.9547461,175.27,175.25,5.74423511]
[1748338836375,5.74148478,175.29,175.25,5.74423511]
[1748338836576,2.95468806,175.28,175.25,5.74423511]